bitfinex/quotes_BTCUSD_20221001
["timestamp","ask_amount","ask_price","bid_price","bid_amount"]
[1664612528308,0.21422123,19341.0,19340.0,0.38261374]
[1664612529038,0.08496223,19341.0,19340.0,0.38261374]
[1664612529706,0.08496223,19341.0,19340.0,0.36061374]
[1664612529931,0.08496223,19341.0,19340.0,0.00239074]
[1664612530386,0.08496223,19341.0,19340.0,0.02439074]
[1664612531125,0.08496223,19341.0,19340.0,0.38261374]
[1664612531598,0.08496223,19341.0,19340.0,0.72048844]
[1664612532129,0.08496223,19341.0,19340.0,0.76148844]
[1664612532366,0.08484806,19341.0,19340.0,0.76148844]
[1664612532594,0.08484806,19341.0,19340.0,0.40161374]
[1664612532810,0.08484806,19341.0,19340.0,0.76148844]
[1664612533241,0.08484806,19341.0,19340.0,0.40161374]
[1664612533459,0.08484806,19341.0,19340.0,0.72048844]
[1664612533689,0.08484806,19341.0,19340.0,0.36061374]
[1664612534334,0.08484806,19341.0,19340.0,0.40161374]
[1664612534770,0.08484806,19341.0,19340.0,0.76148844]
[1664612535492,0.08484806,19341.0,19340.0,0.72048844]
[1664612535922,0.08484806,19341.0,19340.0,0.36061374]
[1664612536345,0.08484806,19341.0,19340.0,0.40161374]
[1664612536692,0.08484806,19341.0,19340.0,0.04339074]
[1664612536904,0.08484806,19341.0,19340.0,0.40161374]
[1664612537558,0.08484806,19341.0,19340.0,0.36061374]
[1664612538237,0.08484806,19341.0,19340.0,0.40161374]
[1664612539643,0.08484806,19341.0,19340.0,0.36061374]
[1664612540304,0.08484806,19341.0,19340.0,0.37861374]
[1664612541507,0.08484806,19341.0,19340.0,0.36061374]
[1664612541769,0.08484806,19341.0,19340.0,0.00239074]
[1664612542230,0.08484806,19341.0,19340.0,0.37861374]
[1664612542408,0.08484806,19341.0,19340.0,0.02039074]
[1664612542625,0.08484806,19341.0,19340.0,0.37861374]
[1664612543592,0.08484806,19341.0,19340.0,0.02039074]
[1664612544006,0.08484806,19341.0,19340.0,0.37861374]
[1664612544274,0.08484806,19341.0,19340.0,0.02439074]
[1664612544679,0.08484806,19341.0,19340.0,0.38261374]
[1664612544889,0.08484806,19341.0,19340.0,0.02439074]
[1664612545588,0.08484806,19341.0,19340.0,0.00239074]
[1664612545763,0.08484806,19341.0,19340.0,0.36061374]
[1664612545982,0.08484806,19341.0,19340.0,0.00239074]
[1664612546168,0.08484806,19341.0,19340.0,0.36061374]
[1664612546547,0.08484806,19341.0,19340.0,0.38261374]
[1664612547537,0.08484806,19341.0,19340.0,0.36061374]
[1664612547997,0.08484806,19341.0,19340.0,0.37061374]
[1664612548285,0.08484806,19341.0,19340.0,0.39261374]
[1664612548728,2.023576,19346.0,19345.0,15.76205251]
[1664612548948,3.00598442,19346.0,19345.0,15.96689184]
[1664612549255,4.34823942,19346.0,19345.0,15.66215886]
[1664612549478,4.14452911,19346.0,19345.0,15.66215886]
[1664612550288,4.44452911,19346.0,19345.0,15.66215886]
[1664612552358,4.44452911,19346.0,19345.0,15.64215886]
[1664612552578,4.39452911,19346.0,19345.0,15.64215886]
[1664612553813,4.47452911,19346.0,19345.0,15.64215886]
[1664612554466,4.60532613,19346.0,19345.0,15.64215886]
[1664612555245,4.52532613,19346.0,19345.0,15.64215886]
[1664612556727,4.52032613,19346.0,19345.0,15.64215886]
[1664612558152,4.47532613,19346.0,19345.0,15.64215886]
[1664612558367,4.52532613,19346.0,19345.0,15.64215886]
[1664612559069,4.47532613,19346.0,19345.0,15.64215886]
[1664612559308,4.67747876,19346.0,19345.0,15.64215886]
[1664612559716,4.52532613,19346.0,19345.0,15.64215886]
[1664612560293,4.47532613,19346.0,19345.0,16.00038186]
[1664612560506,4.47532613,19346.0,19345.0,15.64215886]
[1664612560752,4.67747876,19346.0,19345.0,15.64215886]
[1664612561443,4.52532613,19346.0,19345.0,15.64215886]
[1664612563782,4.47532613,19346.0,19345.0,15.64215886]
[1664612563999,4.52532613,19346.0,19345.0,15.64215886]
[1664612564952,4.47532613,19346.0,19345.0,15.64215886]
[1664612565832,4.52532613,19346.0,19345.0,15.6445496]
[1664612566273,4.47532613,19346.0,19345.0,15.6445496]
[1664612566718,4.02928208,19346.0,19345.0,15.6445496]
[1664612567219,4.03396668,19346.0,19345.0,15.6445496]
[1664612567477,3.98396668,19346.0,19345.0,15.6445496]
[1664612567695,3.93396668,19346.0,19345.0,15.6445496]
[1664612568543,4.03534589,19346.0,19345.0,15.6445496]
[1664612569651,3.13534589,19346.0,19345.0,15.6445496]
[1664612570519,3.13534589,19346.0,19345.0,16.0027726]
[1664612570739,3.13534589,19346.0,19345.0,15.64920689]
[1664612573796,3.13534589,19346.0,19345.0,16.00742989]
[1664612574056,3.13534589,19346.0,19345.0,15.64920689]
[1664612576509,4.35939649,19346.0,19345.0,15.64920689]
[1664612576754,4.03396668,19346.0,19345.0,15.64920689]
[1664612576968,6.75296385,19346.0,19345.0,15.64920689]
[1664612577197,5.80296385,19346.0,19345.0,15.64920689]
[1664612577340,6.75296385,19346.0,19345.0,15.64920689]
[1664612579113,6.90511648,19346.0,19345.0,15.64909227]
[1664612579446,6.75296385,19346.0,19345.0,15.64909227]
[1664612580836,3.98396668,19346.0,19345.0,15.64909227]
[1664612581055,4.03396668,19346.0,19345.0,15.64909227]
[1664612582688,3.98396668,19346.0,19345.0,15.64909227]
[1664612584755,4.03534596,19346.0,19345.0,15.64909227]
[1664612585660,3.18534596,19346.0,19345.0,15.64909227]
[1664612586785,3.13534596,19346.0,19345.0,15.64909227]
[1664612588145,3.21644841,19346.0,19345.0,15.64909227]
[1664612588370,3.05454894,19346.0,19345.0,15.64909227]
[1664612588811,3.13564826,19346.0,19345.0,15.64909227]
[1664612589523,3.05454894,19346.0,19345.0,15.64909227]
[1664612589991,3.13564821,19346.0,19345.0,15.64909227]
[1664612590461,3.05454894,19346.0,19345.0,15.64909227]
[1664612591378,3.10454894,19346.0,19345.0,15.64909227]
[1664612592528,3.05454894,19346.0,19345.0,15.64909227]
[1664612592973,3.10454894,19346.0,19345.0,15.64909227]
[1664612595200,3.05454894,19346.0,19345.0,15.64909227]
[1664612595863,3.1356484,19346.0,19345.0,15.64909227]
[1664612597658,3.05454894,19346.0,19345.0,15.64909227]
[1664612598826,3.13564642,19346.0,19345.0,15.64909227]
[1664612599027,3.18564642,19346.0,19345.0,15.64909227]
[1664612599247,3.10454894,19346.0,19345.0,15.64909227]
[1664612599476,3.18564669,19346.0,19345.0,15.64909227]
[1664612600374,3.11901376,19346.0,19345.0,15.64909227]
[1664612600541,3.13564474,19346.0,19345.0,15.64909227]
[1664612602200,3.13564474,19346.0,19345.0,16.00731527]
[1664612602396,3.07845473,19346.0,19345.0,15.64909227]
[1664612603164,3.13564449,19346.0,19345.0,15.64909227]
[1664612603587,3.13564449,19346.0,19345.0,15.64900108]
[1664612603809,3.13495595,19346.0,19345.0,15.64900108]
[1664612604364,3.07776575,19346.0,19345.0,15.64900108]
[1664612604599,3.13495568,19346.0,19345.0,15.64900108]
[1664612606503,3.10385793,19346.0,19345.0,15.64900108]
[1664612606716,3.18495328,19346.0,19345.0,15.64900108]
[1664612606915,3.10385793,19346.0,19345.0,15.64900108]
[1664612607139,3.13495253,19346.0,19345.0,15.64900108]
[1664612607353,2.20826323,19346.0,19345.0,15.64900108]
[1664612607574,2.07980982,19346.0,19345.0,15.64900108]
[1664612608688,2.37980982,19346.0,19345.0,15.64900108]
[1664612610448,2.43700006,19346.0,19345.0,15.64900108]
[1664612610656,2.379809,19346.0,19345.0,15.64900108]
[1664612611089,2.43700014,19346.0,19345.0,15.64900108]
[1664612611430,2.43700005,19346.0,19345.0,15.64900108]
[1664612612028,2.37980903,19346.0,19345.0,15.64900108]
[1664612613457,2.03925788,19346.0,19345.0,16.00722408]
[1664612613902,2.03925788,19346.0,19345.0,15.64900108]
[1664612614113,2.03894729,19346.0,19345.0,15.64900108]
[1664612614588,2.33894729,19346.0,19345.0,15.64900108]
[1664612615029,2.37949844,19346.0,19345.0,15.64900108]
[1664612615193,2.29840384,19346.0,19345.0,15.64900108]
[1664612615589,2.33894722,19346.0,19345.0,15.64900108]
[1664612616389,2.37949844,19346.0,19345.0,15.64900108]
[1664612616770,2.29840384,19346.0,19345.0,15.64900108]
[1664612616986,1.97812835,19346.0,19345.0,15.64900108]
[1664612617193,0.90378145,19346.0,19345.0,16.37314572]
[1664612617596,1.01352688,19348.0,19345.0,16.37314572]
[1664612617597,1.01252688,19348.0,19347.0,0.30355491]
[1664612617909,1.40259516,19348.0,19347.0,0.30355491]
[1664612618554,1.70259516,19348.0,19347.0,0.30355491]
[1664612618771,1.70259516,19348.0,19347.0,0.20366126]
[1664612619200,1.78368976,19348.0,19347.0,0.20366126]
[1664612619420,1.70259516,19348.0,19347.0,0.20366126]
[1664612619629,1.78368976,19348.0,19347.0,0.20823179]
[1664612620790,1.70259516,19348.0,19347.0,0.20823179]
[1664612621758,1.70251935,19348.0,19347.0,0.20823179]
[1664612623780,1.64170863,19348.0,19347.0,0.93648091]
[1664612623996,1.64170863,19348.0,19347.0,0.20823179]
[1664612624475,1.64170863,19348.0,19347.0,0.57825791]
[1664612624476,1.70251935,19348.0,19347.0,0.57825791]
[1664612624677,1.64170863,19348.0,19347.0,0.20823179]
[1664612626129,1.34170863,19348.0,19347.0,0.20823179]
[1664612626825,1.64170863,19348.0,19347.0,0.20823179]
[1664612627643,1.68223543,19348.0,19347.0,0.20823179]
[1664612628059,1.64170863,19348.0,19347.0,0.20823179]
[1664612628480,1.68223543,19348.0,19347.0,0.20823179]
[1664612630426,1.74304615,19348.0,19347.0,0.20823179]
[1664612630646,3.0204728,19348.0,19347.0,0.20823179]
[1664612630820,3.23059815,19348.0,19347.0,0.20823179]
[1664612631933,3.27116671,19348.0,19347.0,0.20823179]
[1664612632209,3.16978743,19348.0,19347.0,0.20823179]
[1664612632427,3.23057925,19348.0,19347.0,0.20823179]
[1664612632650,3.16978743,19348.0,19347.0,0.20823179]
[1664612632953,3.23057971,19348.0,19347.0,0.20823179]
[1664612633183,3.15478743,19348.0,19347.0,0.21062253]
[1664612633423,2.89372083,19348.0,19347.0,0.56884553]
[1664612633635,2.81262623,19348.0,19347.0,0.21062253]
[1664612634085,2.89372083,19348.0,19347.0,0.21062253]
[1664612634286,2.85315389,19348.0,19347.0,0.21062253]
[1664612635894,2.81262623,19348.0,19347.0,0.21062253]
[1664612636123,2.8531539,19348.0,19347.0,0.21062253]
[1664612637528,3.30172838,19348.0,19347.0,0.21062253]
[1664612637761,3.35172838,19348.0,19347.0,0.21062253]
[1664612638704,3.30172838,19348.0,19347.0,0.21062253]
[1664612640024,3.09806712,19348.0,19347.0,0.00696127]
[1664612640899,3.14806712,19348.0,19347.0,0.00696127]
[1664612642229,1.79005957,19348.0,19347.0,0.00696127]
[1664612642450,1.74949611,19348.0,19347.0,0.00696127]
[1664612644273,1.68870386,19348.0,19347.0,0.00696127]
[1664612644738,1.74949611,19348.0,19347.0,0.00696127]
[1664612645607,1.68870386,19348.0,19347.0,0.00696127]
[1664612645836,1.74949611,19348.0,19347.0,0.00696127]
[1664612646564,1.69949611,19348.0,19347.0,0.00696127]
[1664612650475,1.65896497,19348.0,19347.0,0.00696127]
[1664612650806,1.69950115,19348.0,19347.0,0.00696127]
[1664612651265,1.22405987,19348.0,19347.0,0.37580463]
[1664612651442,0.55226762,19348.0,19347.0,0.73402763]
[1664612651655,0.51173144,19348.0,19347.0,0.73402763]
[1664612652154,0.51173144,19348.0,19347.0,0.37580463]
[1664612653142,0.51173144,19348.0,19347.0,0.73402763]
[1664612653608,0.26920572,19349.0,19348.0,0.31764365]
[1664612653609,0.78093716,19349.0,19348.0,0.31764365]
[1664612653832,0.78093716,19349.0,19348.0,0.94481636]
[1664612653833,0.65173016,19349.0,19348.0,0.94481636]
[1664612654045,0.65173016,19349.0,19348.0,0.21775]
[1664612654698,0.65173016,19349.0,19348.0,0.575973]
[1664612654911,0.64673016,19349.0,19348.0,0.575973]
[1664612655121,0.64673016,19349.0,19348.0,0.58659336]
[1664612655334,0.64673016,19349.0,19348.0,0.21775]
[1664612655705,0.64673016,19349.0,19348.0,0.12684]
[1664612656129,1.07593516,19349.0,19348.0,0.12684]
[1664612656362,0.77593516,19349.0,19348.0,0.12684]
[1664612657019,1.33434616,19349.0,19347.0,0.37580463]
[1664612657252,1.33434616,19349.0,19348.0,0.09989365]
[1664612657833,1.03434616,19349.0,19348.0,0.358223]
[1664612658075,1.33434616,19349.0,19347.0,0.37580463]
[1664612658290,1.03434616,19349.0,19347.0,0.37580463]
[1664612658501,1.03434616,19349.0,19348.0,0.09989365]
[1664612659334,1.03434616,19349.0,19347.0,0.37580463]
[1664612659552,1.07488234,19349.0,19347.0,0.37580463]
[1664612659765,1.03434616,19349.0,19347.0,0.37580463]
[1664612660038,1.03434616,19349.0,19348.0,0.45811665]
[1664612660277,1.03434616,19349.0,19348.0,0.358223]
[1664612660501,1.89170434,19349.0,19347.0,0.00696127]
[1664612660726,0.3,19348.0,19347.0,0.00696127]
[1664612661180,1.89170434,19349.0,19347.0,0.00696127]
[1664612661404,1.89170434,19349.0,19348.0,0.09989365]
[1664612661633,1.85116816,19349.0,19348.0,0.09989365]
[1664612661894,1.85116816,19349.0,19347.0,0.00696127]
[1664612662115,0.3,19348.0,19347.0,0.00696127]
[1664612663256,1.55116816,19349.0,19348.0,0.09989365]
[1664612663471,1.85116816,19349.0,19348.0,0.45811665]
[1664612663738,1.85116816,19349.0,19348.0,0.09989365]
[1664612663966,1.55116816,19349.0,19348.0,0.09989365]
[1664612664192,1.55116816,19349.0,19348.0,0.45811665]
[1664612664384,1.03434616,19349.0,19348.0,0.12684]
[1664612664615,1.03434616,19349.0,19348.0,0.485063]
[1664612664843,1.03434616,19349.0,19348.0,0.12684]
[1664612666847,1.03434616,19349.0,19347.0,0.37580463]
[1664612667225,1.03434616,19349.0,19348.0,0.09989365]
[1664612667497,1.33434616,19349.0,19348.0,0.09989365]
[1664612667690,1.03434616,19349.0,19348.0,0.09989365]
[1664612668083,0.52261472,19349.0,19348.0,0.09989365]
[1664612668301,0.52261472,19349.0,19348.0,0.45811665]
[1664612668302,0.13499872,19349.0,19348.0,0.45811665]
[1664612668536,0.13499872,19349.0,19348.0,0.82696001]
[1664612668785,0.13499872,19349.0,19348.0,0.46873701]
[1664612669581,0.13499872,19349.0,19348.0,0.82696001]
[1664612669791,0.13499872,19349.0,19348.0,0.46873701]
[1664612670461,0.13499872,19349.0,19348.0,1.04669288]
[1664612670896,0.13499872,19349.0,19348.0,0.76446988]
[1664612671110,0.13499872,19349.0,19348.0,1.12269288]
[1664612672492,0.13499872,19349.0,19348.0,1.04669288]
[1664612672994,0.13499872,19349.0,19348.0,1.04908362]
[1664612674212,0.00987672,19349.0,19348.0,1.40743139]
[1664612674429,0.00987672,19349.0,19348.0,1.56081506]
[1664612674878,0.00987672,19349.0,19348.0,1.60721506]
[1664612675393,0.00987672,19349.0,19348.0,4.05518867]
[1664612676041,0.00987672,19349.0,19348.0,4.01618867]
[1664612676911,0.00987672,19349.0,19348.0,3.71296567]
[1664612677155,0.00987672,19349.0,19348.0,4.07118867]
[1664612678048,0.00987672,19349.0,19348.0,4.01618867]
[1664612678999,0.0097624,19349.0,19348.0,4.12118867]
[1664612679459,0.0097624,19349.0,19348.0,4.07118867]
[1664612679902,0.0097624,19349.0,19348.0,4.12118867]
[1664612680217,0.0097624,19349.0,19348.0,4.01618867]
[1664612680374,0.0097624,19349.0,19348.0,4.06618867]
[1664612680800,0.0097624,19349.0,19348.0,4.68968867]
[1664612681118,0.0022,19356.0,19353.0,0.48356726]
[1664612681342,0.0022,19356.0,19355.0,0.45811665]
[1664612681616,0.0022,19356.0,19355.0,0.3675753]
[1664612681832,0.0072,19356.0,19354.0,0.4967453]
[1664612682049,0.0072,19356.0,19355.0,0.358223]
[1664612682425,0.0072,19356.0,19354.0,1.13777674]
[1664612682895,0.0072,19356.0,19355.0,0.10589365]
[1664612683493,0.0072,19356.0,19355.0,0.006]
[1664612683721,0.0072,19356.0,19355.0,0.364223]
[1664612684120,0.0072,19356.0,19355.0,0.358223]
[1664612684330,0.98886,19356.0,19355.0,0.358223]
[1664612684538,1.33403601,19356.0,19355.0,0.00287757]
[1664612684787,1.52974802,19356.0,19355.0,0.00287757]
[1664612685001,1.57974802,19356.0,19355.0,0.00287757]
[1664612685202,1.70890602,19356.0,19355.0,0.00287757]
[1664612685412,1.65890602,19356.0,19355.0,0.00287757]
[1664612685914,1.70890602,19356.0,19355.0,0.00287757]
[1664612686146,2.52673725,19356.0,19355.0,0.00287757]
[1664612686359,2.56727343,19356.0,19355.0,0.00287757]
[1664612687110,2.67006568,19356.0,19355.0,0.00287757]
[1664612687334,0.311,19354.0,19350.0,0.1422234]
[1664612687579,0.311,19354.0,19350.0,0.0129624]
[1664612687580,1.61948874,19353.0,19350.0,0.0129624]
[1664612687792,0.51173144,19352.0,19350.0,0.0129624]
[1664612688085,0.51173144,19352.0,19351.0,0.358223]
[1664612688086,0.64091644,19352.0,19351.0,0.358223]
[1664612688311,1.25983613,19352.0,19350.0,0.0129624]
[1664612688536,0.5093407,19351.0,19350.0,0.0129624]
[1664612688991,0.5093407,19351.0,19350.0,0.4491854]
[1664612689214,0.5093407,19351.0,19350.0,0.67799272]
[1664612689215,0.8093407,19351.0,19350.0,0.67799272]
[1664612689672,0.5093407,19351.0,19350.0,0.4491854]
[1664612689907,0.8969167,19351.0,19350.0,0.4491854]
[1664612690135,0.5093407,19351.0,19350.0,0.45363038]
[1664612690364,0.5093407,19351.0,19350.0,0.37563038]
[1664612690626,0.5093407,19351.0,19350.0,0.01740738]
[1664612690842,1.14498064,19351.0,19350.0,0.01740738]
[1664612691063,1.17798064,19351.0,19350.0,0.09540738]
[1664612691507,0.87798064,19351.0,19350.0,0.09540738]
[1664612691723,1.17798064,19351.0,19350.0,0.09540738]
[1664612692181,1.14498064,19351.0,19350.0,0.01740738]
[1664612692399,0.84903669,19351.0,19350.0,0.01740738]
[1664612692962,0.80478075,19351.0,19350.0,0.09540738]
[1664612693187,0.80478075,19351.0,19350.0,0.45363038]
[1664612694079,0.77178075,19351.0,19350.0,0.37563038]
[1664612694299,0.77178075,19351.0,19350.0,0.01740738]
[1664612694986,0.80478075,19351.0,19350.0,0.09540738]
[1664612696194,0.77178075,19351.0,19350.0,0.01740738]
[1664612696836,0.80078075,19351.0,19350.0,0.09340738]
[1664612698163,0.77178075,19351.0,19350.0,0.01740738]
[1664612698886,0.80478075,19351.0,19350.0,0.09540738]
[1664612699837,0.03705605,19351.0,19350.0,0.09540738]
[1664612700058,0.03705605,19351.0,19350.0,0.65048259]
[1664612700275,0.00405605,19351.0,19350.0,0.57248259]
[1664612700920,0.03805605,19351.0,19350.0,0.65048259]
[1664612701899,0.04250993,19351.0,19350.0,0.46217031]
[1664612702361,0.00850993,19351.0,19350.0,0.38417031]
[1664612703030,0.04250993,19351.0,19350.0,0.46217031]
[1664612704147,0.00850993,19351.0,19350.0,0.38417031]
[1664612704642,0.00445388,19351.0,19350.0,0.38417031]
[1664612705036,0.03845388,19351.0,19350.0,0.46217031]
[1664612706170,0.03845388,19351.0,19350.0,0.38417031]
[1664612706304,0.00445388,19351.0,19350.0,0.38417031]
[1664612706953,0.00445388,19351.0,19350.0,0.46217031]
[1664612708270,0.00445388,19351.0,19350.0,0.02594731]
[1664612708717,0.00445388,19351.0,19350.0,0.38417031]
[1664612708942,0.00445388,19351.0,19350.0,0.10394731]
[1664612709166,0.00445388,19351.0,19350.0,0.82974561]
[1664612709381,0.00445388,19351.0,19350.0,0.46217031]
[1664612709600,0.00445388,19351.0,19350.0,0.10394731]
[1664612709883,0.00445388,19351.0,19350.0,0.46210905]
[1664612710104,0.00445388,19351.0,19350.0,0.38410905]
[1664612710322,0.00445388,19351.0,19350.0,0.02588605]
[1664612710556,1.09506262,19351.0,19350.0,0.38410905]
[1664612710806,1.09506262,19351.0,19350.0,0.02588605]
[1664612711049,1.12006262,19351.0,19350.0,0.10188605]
[1664612711730,1.11506262,19351.0,19350.0,0.10188605]
[1664612712613,1.0950157,19351.0,19350.0,0.02588605]
[1664612713049,0.8180157,19351.0,19350.0,0.45899482]
[1664612713270,0.8180157,19351.0,19350.0,0.10077182]
[1664612713487,1.1180157,19351.0,19350.0,0.10077182]
[1664612714210,1.0903094,19351.0,19350.0,0.02577182]
[1664612714662,1.0947769,19351.0,19350.0,0.02577182]
[1664612714880,1.0947769,19351.0,19350.0,0.08977182]
[1664612714881,1.1017769,19351.0,19350.0,0.08977182]
[1664612715329,1.47356915,19351.0,19350.0,0.08977182]
[1664612715563,2.36885487,19351.0,19350.0,0.08977182]
[1664612715785,2.40936889,19351.0,19350.0,0.08977182]
[1664612716219,2.40236889,19351.0,19350.0,0.02577182]
[1664612716671,2.44294947,19351.0,19350.0,0.02577182]
[1664612716895,2.48094947,19351.0,19350.0,0.02577182]
[1664612717106,2.44036312,19351.0,19350.0,0.02577182]
[1664612717319,1.80036312,19351.0,19350.0,0.02577182]
[1664612717619,1.73957087,19351.0,19350.0,0.02577182]
[1664612717839,1.80036312,19351.0,19350.0,0.02577182]
[1664612718489,1.76236312,19351.0,19350.0,0.02577182]
[1664612718933,1.77136312,19351.0,19350.0,0.09777182]
[1664612719399,2.67136312,19351.0,19350.0,0.09777182]
[1664612719840,1.71057087,19351.0,19350.0,0.09777182]
[1664612720311,1.70157087,19351.0,19350.0,0.02577182]
[1664612720947,1.70657087,19351.0,19350.0,0.08977182]
[1664612721821,1.76736312,19351.0,19350.0,0.08977182]
[1664612722031,2.66736312,19351.0,19350.0,0.08977182]
[1664612722243,2.60157087,19351.0,19350.0,0.02577182]
[1664612722516,1.70157087,19351.0,19350.0,0.02577182]
[1664612722694,1.66106262,19351.0,19350.0,0.02577182]
[1664612722946,1.70157087,19351.0,19350.0,0.02577182]
[1664612723088,1.70657087,19351.0,19350.0,0.08977182]
[1664612724014,1.76736312,19351.0,19350.0,0.08977182]
[1664612724241,2.60157087,19351.0,19350.0,0.02577182]
[1664612724591,2.66236312,19351.0,19350.0,0.02577182]
[1664612725036,1.76736312,19351.0,19350.0,0.08977182]
[1664612725321,1.70657087,19351.0,19350.0,0.08977182]
[1664612725699,1.76736312,19351.0,19350.0,0.08977182]
[1664612725920,1.70657087,19351.0,19350.0,0.08977182]
[1664612726417,1.76236312,19351.0,19350.0,0.02577182]
[1664612726854,2.66236312,19351.0,19350.0,0.02577182]
[1664612727112,2.66736312,19351.0,19350.0,0.08977182]
[1664612728499,1.70157087,19351.0,19350.0,0.02577182]
[1664612728734,1.76236312,19351.0,19350.0,0.02577182]
[1664612729227,1.81336312,19351.0,19350.0,0.02577182]
[1664612729897,1.85394947,19351.0,19350.0,0.02577182]
[1664612730332,1.80294947,19351.0,19350.0,0.02577182]
[1664612730645,1.7623659,19351.0,19350.0,0.02577182]
[1664612730915,1.33605059,19351.0,19350.0,0.02577182]
[1664612731144,1.38705059,19351.0,19350.0,0.0129624]
[1664612731363,1.73411556,19351.0,19350.0,0.3711854]
[1664612731589,1.42311556,19351.0,19350.0,0.3711854]
[1664612731811,1.20976132,19351.0,19350.0,0.01759456]
[1664612732037,0.82218532,19351.0,19350.0,0.01759456]
[1664612732480,0.77118532,19351.0,19350.0,0.01759456]
[1664612733183,0.77118532,19351.0,19350.0,0.09459456]
[1664612733184,0.79518532,19351.0,19350.0,0.09459456]
[1664612734297,0.79518532,19351.0,19350.0,0.01759456]
[1664612734525,0.77118532,19351.0,19350.0,0.74339286]
[1664612734743,0.77118532,19351.0,19350.0,0.01759456]
[1664612735167,0.79518532,19351.0,19350.0,0.09459456]
[1664612735751,0.284,19351.0,19350.0,0.46216986]
[1664612735974,0.284,19351.0,19350.0,0.82039286]
[1664612736374,0.26,19351.0,19350.0,0.99161841]
[1664612737075,0.26,19351.0,19350.0,1.07061841]
[1664612738322,0.26,19351.0,19350.0,0.71239541]
[1664612738538,0.26,19351.0,19350.0,1.07061841]
[1664612738757,0.26,19351.0,19350.0,0.62404311]
[1664612738972,0.26,19351.0,19350.0,0.26582011]
[1664612739105,0.26,19351.0,19350.0,0.34482011]
[1664612740160,0.26,19351.0,19350.0,0.70304311]
[1664612740444,0.26,19351.0,19350.0,0.26582011]
[1664612740445,0.56,19351.0,19350.0,0.26582011]
[1664612740653,0.26,19351.0,19350.0,0.26582011]
[1664612741087,0.26,19351.0,19350.0,0.70304311]
[1664612742247,0.56,19351.0,19350.0,0.62404311]
[1664612742465,0.26,19351.0,19350.0,0.62404311]
[1664612743115,0.26,19351.0,19350.0,0.34482011]
[1664612743543,0.26,19351.0,19350.0,0.70304311]
[1664612743766,0.26,19351.0,19350.0,1.07061841]
[1664612744228,0.26,19351.0,19350.0,0.99161841]
[1664612744897,0.26,19351.0,19350.0,1.12081641]
[1664612745122,0.26,19351.0,19350.0,1.19981641]
[1664612746278,0.26,19351.0,19350.0,1.37921341]
[1664612747179,0.26,19351.0,19350.0,1.45821341]
[1664612748351,0.26,19351.0,19350.0,1.37921341]
[1664612748782,0.26,19351.0,19350.0,1.12081641]
[1664612749011,0.26,19351.0,19350.0,0.47401811]
[1664612749242,0.26,19351.0,19350.0,0.34482011]
[1664612749747,0.26,19351.0,19350.0,0.70304311]
[1664612750446,0.26,19351.0,19350.0,0.26582011]
[1664612750893,0.26,19351.0,19350.0,0.62404311]
[1664612751105,0.26,19351.0,19350.0,0.70304311]
[1664612752377,0.26,19351.0,19350.0,0.26582011]
[1664612752813,0.26,19351.0,19350.0,0.62404311]
[1664612753237,0.26,19351.0,19350.0,0.70304311]
[1664612754383,0.26,19351.0,19350.0,0.62404311]
[1664612755257,0.26,19351.0,19350.0,0.34482011]
[1664612756269,0.26,19351.0,19350.0,0.70304311]
[1664612756917,0.26,19351.0,19350.0,0.26582011]
[1664612757137,0.26,19351.0,19350.0,0.70304311]
[1664612757384,0.56,19351.0,19350.0,0.70304311]
[1664612757845,0.26,19351.0,19350.0,0.70293104]
[1664612758533,0.26,19351.0,19350.0,0.26570804]
[1664612758758,0.26,19351.0,19350.0,0.62393104]
[1664612758980,0.70275426,19351.0,19350.0,0.01741036]
[1664612759211,0.70275426,19351.0,19350.0,0.09641036]
[1664612759480,0.70275426,19351.0,19350.0,0.45463336]
[1664612759707,0.40275426,19351.0,19350.0,0.09641036]
[1664612759928,0.40275426,19351.0,19350.0,0.45463336]
[1664612759929,0.26,19351.0,19350.0,0.45463336]
[1664612760468,0.26,19351.0,19350.0,1.37563336]
[1664612761195,0.26,19351.0,19350.0,1.45463336]
[1664612761978,0.26,19351.0,19350.0,1.82220866]
[1664612762408,0.26,19351.0,19350.0,1.74320866]
[1664612763084,0.26,19351.0,19350.0,1.82220866]
[1664612764596,0.26,19351.0,19350.0,1.45463336]
[1664612764817,0.25991229,19351.0,19350.0,1.37563336]
[1664612765035,0.25991229,19351.0,19350.0,1.01741036]
[1664612765192,0.25991229,19351.0,19350.0,1.82220866]
[1664612766641,0.25991229,19351.0,19350.0,1.74320866]
[1664612767341,0.25991229,19351.0,19350.0,1.82220866]
[1664612768431,0.25991229,19351.0,19350.0,2.20980366]
[1664612768821,0.25991229,19351.0,19350.0,2.13580366]
[1664612769225,0.25991229,19351.0,19350.0,2.21480366]
[1664612770559,0.25991229,19351.0,19350.0,1.77758066]
[1664612770886,0.25991229,19351.0,19350.0,2.13580366]
[1664612771305,0.25991229,19351.0,19350.0,2.21480366]
[1664612772693,0.25991229,19351.0,19350.0,2.13580366]
[1664612773330,0.25991229,19351.0,19350.0,2.21480366]
[1664612774650,0.25991229,19351.0,19350.0,2.13580366]
[1664612775254,0.25991229,19351.0,19350.0,2.21480366]
[1664612776507,0.25991229,19351.0,19350.0,2.13580366]
[1664612777108,0.25991229,19351.0,19350.0,2.21480366]
[1664612778553,0.25991229,19351.0,19350.0,2.13580366]
[1664612779220,0.25991229,19351.0,19350.0,2.21480366]
[1664612780551,0.25991229,19351.0,19350.0,2.13580366]
[1664612781246,0.25991229,19351.0,19350.0,2.21480366]
[1664612782479,0.25991229,19351.0,19350.0,2.13580366]
[1664612783371,0.25991229,19351.0,19350.0,2.20184126]
[1664612784521,0.25991229,19351.0,19350.0,2.12284126]
[1664612785457,0.25991229,19351.0,19350.0,2.20184126]
[1664612786367,0.25991229,19351.0,19350.0,1.83426596]
[1664612786820,0.25991229,19351.0,19350.0,1.75526596]
[1664612787058,0.25991229,19351.0,19350.0,2.12284126]
[1664612787275,0.25991229,19351.0,19350.0,1.83426596]
[1664612788535,0.25991229,19351.0,19350.0,1.75526596]
[1664612789383,0.25991229,19351.0,19350.0,1.83426596]
[1664612789561,0.25991229,19351.0,19350.0,1.57586896]
[1664612789993,0.25991229,19351.0,19350.0,1.21764596]
[1664612790222,0.25991229,19351.0,19350.0,1.57586896]
[1664612790438,0.25991229,19351.0,19350.0,1.49686896]
[1664612791344,0.25991229,19351.0,19350.0,1.57586896]
[1664612792447,0.25991229,19351.0,19350.0,1.49686896]
[1664612792661,0.25991229,19351.0,19350.0,1.86444426]
[1664612792882,0.25991229,19351.0,19350.0,1.49686896]
[1664612793461,0.25991229,19351.0,19350.0,1.57586896]
[1664612794671,0.25991229,19351.0,19350.0,1.49686896]
[1664612795330,0.25991229,19351.0,19350.0,1.57586896]
[1664612796472,0.25991229,19351.0,19350.0,1.44667096]
[1664612798728,0.25991229,19351.0,19350.0,1.36767096]
[1664612799439,0.25991229,19351.0,19350.0,1.44667096]
[1664612799897,0.25991229,19351.0,19350.0,1.81424626]